bitfinex/quotes_BTCUSD_20250601
["timestamp","ask_amount","ask_price","bid_price","bid_amount"]
[1748752916005,0.02864407,104730.0,104720.0,0.57741742]
[1748752916262,0.03819234,104730.0,104720.0,0.57741742]
[1748752916465,0.03819234,104730.0,104720.0,0.56786852]
[1748752916650,0.22915958,104730.0,104720.0,0.56786852]
[1748752916780,0.22915958,104730.0,104720.0,0.55963265]
[1748752916985,0.22915958,104730.0,104720.0,0.56786491]
[1748752917193,0.22915958,104730.0,104720.0,0.56786487]
[1748752917417,0.22915958,104730.0,104720.0,0.57741356]
[1748752917855,0.21961177,104730.0,104720.0,0.56786239]
[1748752918049,0.21961177,104730.0,104720.0,0.57741129]
[1748752918477,0.21961177,104730.0,104720.0,0.57740961]
[1748752918671,0.21961177,104730.0,104720.0,0.58407585]
[1748752918873,0.02864453,104730.0,104720.0,0.58407585]
[1748752919044,0.02864453,104730.0,104720.0,0.59362466]
[1748752919597,0.02864453,104730.0,104720.0,0.57452646]
[1748752919783,0.02864453,104730.0,104720.0,0.58407536]
[1748752919992,0.02864453,104730.0,104720.0,0.58407373]
[1748752920618,0.03162848,104730.0,104720.0,0.57452483]
[1748752920736,0.03162848,104730.0,104720.0,0.58407373]
[1748752921168,0.03162848,104730.0,104720.0,0.58407269]
[1748752921480,0.22259572,104730.0,104720.0,0.58407288]
[1748752921685,0.21961177,104730.0,104720.0,0.58407249]
[1748752921886,0.21961177,104730.0,104720.0,0.58407236]
[1748752922087,0.21961177,104730.0,104720.0,0.57452336]
[1748752922320,0.21006369,104730.0,104720.0,0.55008384]
[1748752922521,0.20051551,104730.0,104720.0,0.55542467]
[1748752922722,0.20051551,104730.0,104720.0,0.56497385]
[1748752923050,0.20051551,104730.0,104720.0,0.55542384]
[1748752923259,0.20051551,104730.0,104720.0,0.5745222]
[1748752923470,0.20051551,104730.0,104720.0,0.57452188]
[1748752923716,0.01909626,104730.0,104720.0,0.58407056]
[1748752923926,0.22914745,104730.0,104720.0,0.57452156]
[1748752924133,0.2261635,104730.0,104720.0,0.57452156]
[1748752924354,0.2261635,104730.0,104720.0,0.55674848]
[1748752924555,0.2425635,104730.0,104720.0,0.58406973]
[1748752924966,0.2425635,104730.0,104720.0,0.55963284]
[1748752925165,0.2425635,104730.0,104720.0,0.55008384]
[1748752925395,0.2425635,104730.0,104720.0,0.57451931]
[1748752925572,0.2425635,104730.0,104720.0,0.58406831]
[1748752925912,0.2425635,104730.0,104720.0,0.58406799]
[1748752926543,0.2425635,104730.0,104720.0,0.55674764]
[1748752926720,0.2425635,104730.0,104720.0,0.57451729]
[1748752926949,0.2425635,104730.0,104720.0,0.5745171]
[1748752927274,0.2425635,104730.0,104720.0,0.57451663]
[1748752927488,0.2425635,104730.0,104720.0,0.57451662]
[1748752927888,0.2425635,104730.0,104720.0,0.57451645]
[1748752928165,0.2425635,104730.0,104720.0,0.57451648]
[1748752928356,0.2425635,104730.0,104720.0,0.5745167]
[1748752928556,0.2261635,104730.0,104720.0,0.57451661]
[1748752928780,0.2261635,104730.0,104720.0,0.57451615]
[1748752928957,0.2100635,104730.0,104720.0,0.57451615]
[1748752929153,0.2100635,104730.0,104720.0,0.56785282]
[1748752929359,0.2100635,104730.0,104720.0,0.57451615]
[1748752929562,0.2100635,104730.0,104720.0,0.57451556]
[1748752929744,0.2100635,104730.0,104720.0,0.58406465]
[1748752930198,0.2100635,104730.0,104720.0,0.56785239]
[1748752930399,0.2100635,104730.0,104720.0,0.57451515]
[1748752930602,0.2100635,104730.0,104720.0,0.58406422]
[1748752930797,0.2100635,104730.0,104720.0,0.57451513]
[1748752930998,0.2100635,104730.0,104720.0,0.58406422]
[1748752931234,0.2100635,104730.0,104720.0,0.57451509]
[1748752931653,0.01909626,104730.0,104720.0,0.58406384]
[1748752931808,0.21304745,104730.0,104720.0,0.59361285]
[1748752932006,0.2100635,104730.0,104720.0,0.58406385]
[1748752932459,0.2100635,104730.0,104720.0,0.58406402]
[1748752933580,0.2100635,104730.0,104720.0,0.58406426]
[1748752934125,0.2100635,104730.0,104720.0,0.57740111]
[1748752934359,0.2100635,104730.0,104720.0,0.57451505]
[1748752934592,0.01909626,104730.0,104720.0,0.58406414]
[1748752934802,0.03162857,104730.0,104720.0,0.5936131]
[1748752934994,0.03162857,104730.0,104720.0,0.603162]
[1748752935205,0.03162857,104730.0,104720.0,0.5936131]
[1748752935406,0.03162857,104730.0,104720.0,0.57584496]
[1748752935580,0.03162857,104730.0,104720.0,0.57584511]
[1748752935785,0.03162857,104730.0,104720.0,0.59361339]
[1748752936039,0.03162857,104730.0,104720.0,0.60316291]
[1748752936685,0.03162857,104730.0,104720.0,0.59650061]
[1748752937008,0.03162857,104730.0,104720.0,0.58695171]
[1748752937235,0.03162857,104730.0,104720.0,0.59650061]
[1748752937452,0.02208021,104730.0,104720.0,0.58695134]
[1748752937648,0.02208021,104730.0,104720.0,0.57740244]
[1748752937898,0.02208021,104730.0,104720.0,0.57740356]
[1748752938624,0.02208021,104730.0,104720.0,0.56785456]
[1748752938844,0.02208021,104730.0,104720.0,0.57740488]
[1748752939251,0.02208021,104730.0,104720.0,0.55963275]
[1748752939479,0.02208021,104730.0,104720.0,0.56785715]
[1748752939710,0.02208021,104730.0,104720.0,0.55008375]
[1748752939892,0.03788021,104730.0,104720.0,0.55008375]
[1748752940044,0.03788021,104730.0,104720.0,0.56785716]
[1748752940246,0.05338021,104730.0,104720.0,0.55008375]
[1748752940660,0.05338021,104730.0,104720.0,0.56785878]
[1748752940864,0.05338021,104730.0,104720.0,0.55008375]
[1748752941103,0.24434745,104730.0,104720.0,0.55830969]
[1748752941317,0.2413635,104730.0,104720.0,0.55830969]
[1748752941524,0.2413635,104730.0,104720.0,0.56785869]
[1748752941698,0.05039626,104730.0,104720.0,0.56785869]
[1748752941905,0.05338021,104730.0,104720.0,0.56785878]
[1748752942127,0.05338021,104730.0,104720.0,0.57740778]
[1748752942283,0.05338021,104730.0,104720.0,0.56785878]
[1748752942483,0.05338021,104730.0,104720.0,0.56786445]
[1748752943412,0.24434745,104730.0,104720.0,0.55831818]
[1748752943743,0.2413635,104730.0,104720.0,0.54053466]
[1748752943940,0.2413635,104730.0,104720.0,0.56786744]
[1748752944171,0.2413635,104730.0,104720.0,0.55831835]
[1748752944387,0.2413635,104730.0,104720.0,0.56786744]
[1748752944785,0.2413635,104730.0,104720.0,0.57741644]
[1748752944987,0.2413635,104730.0,104720.0,0.56787194]
[1748752945198,0.2413635,104730.0,104720.0,0.56787193]
[1748752945403,0.2413635,104730.0,104720.0,0.55008375]
[1748752945613,0.2413635,104730.0,104720.0,0.56787305]
[1748752945817,0.2413635,104730.0,104720.0,0.55832396]
[1748752946120,0.2413635,104730.0,104720.0,0.55832392]
[1748752946373,0.2413635,104730.0,104720.0,0.56787301]
[1748752946983,0.2413635,104730.0,104720.0,0.56787299]
[1748752947191,0.2413635,104730.0,104720.0,0.55008375]
[1748752947321,0.2413635,104730.0,104720.0,0.56787299]
[1748752947991,0.2413635,104730.0,104720.0,0.5583239]
[1748752948234,0.2413635,104730.0,104720.0,0.56787264]
[1748752948417,0.2413635,104730.0,104720.0,0.55963275]
[1748752948633,0.2413635,104730.0,104720.0,0.57742158]
[1748752949577,0.2413635,104730.0,104720.0,0.56787258]
[1748752949790,0.2413635,104730.0,104720.0,0.57742158]
[1748752949998,0.2258635,104730.0,104720.0,0.57742153]
[1748752950196,0.2100635,104730.0,104720.0,0.56787253]
[1748752950434,0.2100635,104730.0,104720.0,0.58408769]
[1748752950626,0.2100635,104730.0,104720.0,0.59363659]
[1748752951466,0.2100635,104730.0,104720.0,0.58408769]
[1748752951649,0.2100635,104730.0,104720.0,0.58408766]
[1748752951794,0.2100635,104730.0,104720.0,0.57453866]
[1748752952209,0.2100635,104730.0,104720.0,0.56498957]
[1748752952419,0.2100635,104730.0,104720.0,0.53765164]
[1748752952647,0.2100635,104730.0,104720.0,0.56498954]
[1748752952841,0.2100635,104730.0,104720.0,0.57453863]
[1748752953179,0.2100635,104730.0,104720.0,0.56498954]
[1748752953387,0.2100635,104730.0,104720.0,0.56498955]
[1748752953597,0.2100635,104730.0,104720.0,0.57453874]
[1748752954248,0.2100635,104730.0,104720.0,0.5745387]
[1748752955179,0.2100635,104730.0,104720.0,0.54720082]
[1748752955380,0.2100635,104730.0,104720.0,0.57453884]
[1748752955622,0.2100635,104730.0,104720.0,0.56498975]
[1748752956230,0.2100635,104730.0,104720.0,0.56498973]
[1748752956866,0.2100635,104730.0,104720.0,0.56498975]
[1748752957255,0.2100635,104730.0,104720.0,0.55544057]
[1748752957464,0.2100635,104730.0,104720.0,0.56498983]
[1748752957900,0.2100635,104730.0,104720.0,0.57453892]
[1748752958316,0.2100635,104730.0,104720.0,0.58408792]
[1748752958747,0.2100635,104730.0,104720.0,0.57453892]
[1748752959238,0.2100635,104730.0,104720.0,0.57453901]
[1748752959456,0.2100635,104730.0,104720.0,0.58408832]
[1748752960061,0.2100635,104730.0,104720.0,0.53765164]
[1748752960207,0.2100635,104730.0,104720.0,0.56499028]
[1748752960434,0.2100635,104730.0,104720.0,0.57453941]
[1748752961202,0.2100635,104730.0,104720.0,0.55675]
[1748752961473,0.2100635,104730.0,104720.0,0.5745397]
[1748752961981,0.2100635,104730.0,104720.0,0.55675]
[1748752962187,0.2100635,104730.0,104720.0,0.57454002]
[1748752962619,0.2100635,104730.0,104720.0,0.58408902]
[1748752963299,0.2100635,104730.0,104720.0,0.58408906]
[1748752963900,0.2100635,104730.0,104720.0,0.58408957]
[1748752964333,0.2100635,104730.0,104720.0,0.55675]
[1748752964546,0.01909626,104730.0,104720.0,0.58408957]
[1748752964758,0.0220802,104730.0,104720.0,0.58409078]
[1748752964967,0.0220802,104730.0,104720.0,0.59363968]
[1748752965322,0.0220802,104730.0,104720.0,0.58409078]
[1748752965710,0.0220802,104730.0,104720.0,0.57454178]
[1748752965933,0.0220802,104730.0,104720.0,0.58409078]
[1748752966157,0.0220802,104730.0,104720.0,0.57454178]
[1748752966343,0.0220802,104730.0,104720.0,0.58409078]
[1748752966548,0.03162856,104730.0,104720.0,0.58409078]
[1748752966911,0.03162856,104730.0,104720.0,0.57454178]
[1748752967110,0.03162856,104730.0,104720.0,0.56499269]
[1748752967364,0.03162856,104730.0,104720.0,0.57454182]
[1748752968003,0.03162856,104730.0,104720.0,0.58409086]
[1748752969044,0.03162856,104730.0,104720.0,0.57454186]
[1748752969223,0.03162856,104730.0,104720.0,0.57454185]
[1748752969431,0.03162856,104730.0,104720.0,0.58409085]
[1748752969805,0.03162856,104730.0,104720.0,0.57454185]
[1748752970012,0.03162856,104730.0,104720.0,0.57454204]
[1748752970258,0.03162856,104730.0,104720.0,0.58409104]
[1748752970439,0.03162856,104730.0,104720.0,0.58409106]
[1748752970638,0.03162856,104730.0,104720.0,0.59363969]
[1748752971358,0.03162856,104730.0,104720.0,0.58409079]
[1748752971572,0.03162856,104730.0,104720.0,0.58409066]
[1748752971974,0.03162856,104730.0,104720.0,0.5758479]
[1748752972122,0.03162856,104730.0,104720.0,0.59363957]
[1748752972324,0.0220802,104730.0,104720.0,0.59363957]
[1748752972794,0.0220802,104730.0,104720.0,0.59363948]
[1748752973495,0.0220802,104730.0,104720.0,0.5758479]
[1748752973731,0.0220802,104730.0,104720.0,0.57454158]
[1748752973936,0.03162856,104730.0,104720.0,0.58409052]
[1748752974175,0.02207965,104730.0,104720.0,0.59363933]
[1748752974380,0.03162783,104730.0,104720.0,0.59363933]
[1748752974551,0.03162783,104730.0,104720.0,0.59363942]
[1748752974732,0.03162783,104730.0,104720.0,0.59363937]
[1748752974934,0.03162783,104730.0,104720.0,0.60318818]
[1748752975401,0.0411761,104730.0,104720.0,0.59363937]
[1748752975525,0.0411761,104730.0,104720.0,0.5758479]
[1748752975729,0.0411761,104730.0,104720.0,0.59363935]
[1748752976160,0.0411761,104730.0,104720.0,0.59363931]
[1748752976910,0.0411761,104730.0,104720.0,0.59363929]
[1748752978056,0.03162783,104730.0,104720.0,0.6031881]
[1748752978226,0.03162783,104730.0,104720.0,0.59363929]
[1748752978433,0.03162783,104730.0,104720.0,0.59363927]
[1748752978632,0.03162783,104730.0,104720.0,0.5758479]
[1748752978833,0.02207965,104730.0,104720.0,0.60318807]
[1748752979036,0.03162773,104730.0,104720.0,0.59363879]
[1748752979403,0.041176,104730.0,104720.0,0.58408998]
[1748752979602,0.03162773,104730.0,104720.0,0.58408997]
[1748752979803,0.03162773,104730.0,104720.0,0.59363878]
[1748752980103,0.03162773,104730.0,104720.0,0.58408997]
[1748752980304,0.041176,104730.0,104720.0,0.58408997]
[1748752980991,0.041176,104730.0,104720.0,0.57454107]
[1748752981175,0.041176,104730.0,104720.0,0.57454105]
[1748752981757,0.041176,104730.0,104720.0,0.56499205]
[1748752982118,0.04117591,104730.0,104720.0,0.57454105]
[1748752982290,0.04117591,104730.0,104720.0,0.58408995]
[1748752983222,0.04117591,104730.0,104720.0,0.56499205]
[1748752983427,0.05072427,104730.0,104720.0,0.57454095]
[1748752983629,0.04117591,104730.0,104720.0,0.57454095]
[1748752983842,0.05072418,104730.0,104720.0,0.57454094]
[1748752984351,0.05072418,104730.0,104720.0,0.56499204]
[1748752984477,0.05072418,104730.0,104720.0,0.57454094]
[1748752984689,0.05072418,104730.0,104720.0,0.56499204]
[1748752984885,0.05072418,104730.0,104720.0,0.57454103]
[1748752985123,0.05072418,104730.0,104720.0,0.58408993]
[1748752985696,0.04117591,104730.0,104720.0,0.59363874]
[1748752985896,0.04117591,104730.0,104720.0,0.58408993]
[1748752986303,0.04117591,104730.0,104720.0,0.57454103]
[1748752986507,0.04117591,104730.0,104720.0,0.54720073]
[1748752986741,0.04117591,104730.0,104720.0,0.57454103]
[1748752987159,0.05072427,104730.0,104720.0,0.58408993]
[1748752987453,0.04117591,104730.0,104720.0,0.58408976]
[1748752987673,0.05072418,104730.0,104720.0,0.58408976]
[1748752988328,0.05072418,104730.0,104720.0,0.57454086]
[1748752988508,0.04117646,104730.0,104720.0,0.57454087]
[1748752988661,0.04117646,104730.0,104720.0,0.57454088]
[1748752988871,0.04117646,104730.0,104720.0,0.56499188]
[1748752989077,0.22259571,104730.0,104720.0,0.56499197]
[1748752989288,0.21961177,104730.0,104720.0,0.55674991]
[1748752989492,0.21961177,104730.0,104720.0,0.57454106]
[1748752989715,0.21961177,104730.0,104720.0,0.58409006]
[1748752989876,0.02864453,104730.0,104720.0,0.58409006]
[1748752990073,0.03162845,104730.0,104720.0,0.57454106]
[1748752990533,0.03162845,104730.0,104720.0,0.55674991]
[1748752990724,0.03162845,104730.0,104720.0,0.57454111]
[1748752991953,0.22259569,104730.0,104720.0,0.56499202]
[1748752992098,0.21961177,104730.0,104720.0,0.54720082]
[1748752992302,0.01909544,104730.0,104720.0,0.58408976]
[1748752992526,0.03162699,104730.0,104720.0,0.58408976]
[1748752992726,0.03162699,104730.0,104720.0,0.59363839]
[1748752993161,0.03162699,104730.0,104720.0,0.59363772]
[1748752993448,0.03162699,104730.0,104720.0,0.59363781]
[1748752993449,0.04117507,104730.0,104720.0,0.59363781]
[1748752993635,0.04117507,104730.0,104720.0,0.59363782]
[1748752993840,0.04117498,104730.0,104720.0,0.60318645]
[1748752993977,0.02207909,104730.0,104720.0,0.59363782]
[1748752994183,0.04117507,104730.0,104720.0,0.59363782]
[1748752994394,0.04117507,104730.0,104720.0,0.60318645]
[1748752995157,0.04117507,104730.0,104720.0,0.59363698]
[1748752995353,0.04117507,104730.0,104720.0,0.57453945]
[1748752995654,0.05072325,104730.0,104720.0,0.58408826]
[1748752996655,0.05072325,104730.0,104720.0,0.58408798]
[1748752996891,0.05072325,104730.0,104720.0,0.57453917]
[1748752997063,0.05072398,104730.0,104720.0,0.55674972]
[1748752997276,0.05072398,104730.0,104720.0,0.57453903]
[1748752997657,0.05072398,104730.0,104720.0,0.57453913]
[1748752997879,0.23214359,104730.0,104720.0,0.57453919]
[1748752998085,0.22915967,104730.0,104720.0,0.57453919]
[1748752998295,0.03819243,104730.0,104720.0,0.57453919]
[1748752998499,0.04117634,104730.0,104720.0,0.5649901]
[1748752998740,0.23214358,104730.0,104720.0,0.55544092]
[1748752998969,0.21961177,104730.0,104720.0,0.57453937]
[1748752999875,0.21961177,104730.0,104720.0,0.58408846]
[1748753000119,0.02864453,104730.0,104720.0,0.59363736]
[1748753000293,0.03162844,104730.0,104720.0,0.59363718]
[1748753000678,0.02208017,104730.0,104720.0,0.59363709]
[1748753000875,0.03788017,104730.0,104720.0,0.58408809]
[1748753001076,0.24504741,104730.0,104720.0,0.574539]
[1748753001320,0.2420635,104730.0,104720.0,0.58408809]
[1748753001991,0.25161186,104730.0,104720.0,0.58408809]
[1748753002824,0.25161186,104730.0,104720.0,0.56499044]
[1748753002998,0.25161186,104730.0,104720.0,0.56499035]
[1748753003198,0.25161186,104730.0,104720.0,0.57453944]
[1748753003380,0.25161186,104730.0,104720.0,0.57453945]
[1748753003783,0.25161186,104730.0,104720.0,0.56499036]
[1748753003966,0.25161186,104730.0,104720.0,0.57453945]
[1748753004719,0.06064462,104730.0,104720.0,0.57453945]
[1748753004855,0.06362853,104730.0,104720.0,0.56499036]
[1748753005059,0.06362853,104730.0,104720.0,0.57453945]
[1748753005832,0.06362853,104730.0,104720.0,0.56499036]
[1748753005971,0.06362853,104730.0,104720.0,0.57453962]
[1748753006490,0.25459577,104730.0,104720.0,0.56499062]
[1748753006723,0.25161186,104730.0,104720.0,0.5745398]
[1748753008101,0.25161186,104730.0,104720.0,0.55544135]
[1748753008305,0.25161186,104730.0,104720.0,0.56499062]
[1748753008509,0.25161186,104730.0,104720.0,0.57453981]
[1748753008705,0.24206378,104730.0,104720.0,0.55544136]
[1748753008908,0.24206378,104730.0,104720.0,0.56499054]
[1748753009188,0.24206378,104730.0,104720.0,0.57453963]
[1748753009712,0.24206378,104730.0,104720.0,0.56499054]
[1748753009894,0.24206378,104730.0,104720.0,0.57453966]
[1748753010302,0.03489654,104730.0,104720.0,0.58408866]
[1748753010511,0.21304769,104730.0,104720.0,0.55544139]
[1748753010718,0.21006378,104730.0,104720.0,0.56499057]
[1748753011101,0.21006378,104730.0,104720.0,0.57453966]
[1748753011298,0.03539654,104730.0,104720.0,0.56499057]
[1748753011505,0.05448053,104730.0,104720.0,0.55674991]
[1748753011884,0.05448053,104730.0,104720.0,0.54720082]
[1748753012106,0.05448053,104730.0,104720.0,0.57453966]
[1748753012310,0.05448053,104730.0,104720.0,0.54720082]
[1748753012510,0.05448053,104730.0,104720.0,0.56499054]
[1748753012738,0.05448053,104730.0,104720.0,0.57453963]
[1748753013256,0.05448053,104730.0,104720.0,0.54720082]
[1748753013467,0.05448053,104730.0,104720.0,0.55674991]
[1748753013663,0.05448053,104730.0,104720.0,0.5745396]
[1748753014020,0.24544777,104730.0,104720.0,0.56499051]
[1748753014269,0.24246378,104730.0,104720.0,0.5649906]
[1748753014475,0.24246378,104730.0,104720.0,0.55675009]
[1748753014683,0.24246378,104730.0,104720.0,0.57453939]
[1748753015391,0.05149654,104730.0,104720.0,0.58408839]
[1748753015528,0.24544777,104730.0,104720.0,0.5649903]
[1748753015735,0.24246378,104730.0,104720.0,0.55675009]
[1748753015934,0.24246378,104730.0,104720.0,0.54720091]
[1748753016176,0.24246378,104730.0,104720.0,0.57453939]
[1748753016339,0.24246378,104730.0,104720.0,0.5745394]
[1748753016547,0.24246378,104730.0,104720.0,0.02445544]
[1748753017234,0.24246378,104730.0,104720.0,0.02445526]
[1748753017789,0.24246378,104730.0,104720.0,0.03335148]
[1748753018212,0.24246378,104730.0,104720.0,0.02668532]
[1748753018414,0.20053475,104720.0,104710.0,0.82308225]
[1748753018640,0.21008347,104720.0,104710.0,0.84981695]
[1748753018813,0.21008347,104720.0,104710.0,0.85936713]
[1748753019017,0.21008347,104720.0,104710.0,0.85936288]
[1748753019257,0.23885824,104720.0,104710.0,0.85936285]
[1748753019405,0.23885824,104720.0,104710.0,0.86889991]
[1748753019613,0.23885824,104720.0,104710.0,0.55415114]
[1748753019812,0.23885824,104720.0,104710.0,0.58081701]
[1748753020828,0.2293097,104720.0,104710.0,0.23126154]
[1748753021208,0.2293097,104720.0,104710.0,0.24081163]
[1748753021710,0.2293097,104720.0,104710.0,0.24080738]
[1748753022374,0.2293097,104720.0,104710.0,0.2128217]
[1748753022557,0.2293097,104720.0,104710.0,0.23125729]
[1748753022874,0.2293097,104720.0,104710.0,0.23125618]
[1748753023694,0.2293097,104720.0,104710.0,0.23125198]
[1748753023894,0.2293097,104720.0,104710.0,0.24080207]
[1748753024055,0.2293097,104720.0,104710.0,0.24080192]
[1748753024269,0.2293097,104720.0,104710.0,0.23125151]
[1748753024501,0.2293097,104720.0,104710.0,0.22170088]
[1748753024702,0.2293097,104720.0,104710.0,0.22236681]
[1748753024882,0.2293097,104720.0,104710.0,0.23124969]
[1748753025287,0.2293097,104720.0,104710.0,0.22169951]
[1748753025487,0.2293097,104720.0,104710.0,0.22169944]
[1748753025687,0.2293097,104720.0,104710.0,0.23124962]
[1748753025888,0.2293097,104720.0,104710.0,0.24079971]
[1748753026075,0.2293097,104720.0,104710.0,0.22303402]
[1748753026274,0.2293097,104720.0,104710.0,0.22303357]
[1748753026699,0.2293097,104720.0,104710.0,0.24079843]
[1748753026911,0.21976098,104720.0,104710.0,0.23124818]
[1748753027131,0.21976098,104720.0,104710.0,0.24079774]
[1748753027553,0.21976098,104720.0,104710.0,0.23124759]
[1748753027705,0.21976098,104720.0,104710.0,0.23124736]
[1748753027905,0.21976098,104720.0,104710.0,0.25034745]
[1748753028113,0.21976098,104720.0,104710.0,0.23124736]
[1748753028443,0.21976098,104720.0,104710.0,0.22303253]
[1748753028640,0.21976098,104720.0,104710.0,0.24079523]
[1748753028841,0.21436098,104720.0,104710.0,0.24079522]
[1748753029044,0.21436098,104720.0,104710.0,0.2407952]
[1748753029477,0.21436098,104720.0,104710.0,0.2503452]
[1748753029644,0.21436098,104720.0,104710.0,0.2407952]
[1748753029847,0.21436098,104720.0,104710.0,0.23124511]
[1748753030013,0.21436098,104720.0,104710.0,0.24079549]
[1748753030217,0.21436098,104720.0,104710.0,0.22169521]
[1748753030425,0.21436098,104720.0,104710.0,0.22236394]
[1748753030673,0.21436098,104720.0,104710.0,0.23124572]
[1748753031337,0.21436098,104720.0,104710.0,0.22169554]
[1748753031481,0.22946098,104720.0,104710.0,0.23124572]
[1748753031695,0.22946098,104720.0,104710.0,0.23124667]
[1748753031895,0.24456098,104720.0,104710.0,0.23124667]
[1748753032100,0.24456098,104720.0,104710.0,0.20393277]
[1748753032310,0.24456098,104720.0,104710.0,0.22169658]
[1748753032507,0.24456098,104720.0,104710.0,0.22169674]
[1748753033271,0.24456098,104720.0,104710.0,0.2216969]
[1748753033985,0.24456098,104720.0,104710.0,0.22169898]
[1748753034434,0.24456098,104720.0,104710.0,0.22170045]
[1748753035425,0.24456098,104720.0,104710.0,0.23125063]
[1748753035623,0.24456098,104720.0,104710.0,0.22170045]
[1748753035836,0.24456098,104720.0,104710.0,0.22170489]
[1748753036049,0.24456098,104720.0,104710.0,0.23125498]
[1748753036263,0.24456098,104720.0,104710.0,0.22170489]
[1748753036491,0.24456098,104720.0,104710.0,0.23125507]
[1748753036729,0.24456098,104720.0,104710.0,0.23524815]
[1748753036869,0.24456098,104720.0,104710.0,0.19904542]
[1748753037129,0.24456098,104720.0,104710.0,0.22570118]
[1748753037537,0.24456098,104720.0,104710.0,0.2352542]
[1748753038170,0.24456098,104720.0,104710.0,0.23525588]
[1748753038815,0.24456098,104720.0,104710.0,0.23525752]
[1748753038951,0.24456098,104720.0,104710.0,0.21682238]
[1748753039161,0.24456098,104720.0,104710.0,0.2085956]
[1748753039423,0.24456098,104720.0,104710.0,0.24481348]
[1748753039624,0.06852413,104720.0,104710.0,0.24481348]
[1748753039826,0.0715085,104720.0,104710.0,0.23592705]
[1748753040267,0.26249398,104720.0,104710.0,0.23526742]
[1748753040485,0.25950961,104720.0,104710.0,0.21748621]
[1748753040651,0.24996089,104720.0,104710.0,0.23527612]
[1748753040859,0.24996089,104720.0,104710.0,0.24482639]
[1748753041060,0.24996089,104720.0,104710.0,0.24483082]
[1748753041557,0.24945477,104720.0,104710.0,0.2448309]
[1748753042177,0.24945477,104720.0,104710.0,0.22704081]
[1748753042384,0.24945477,104720.0,104710.0,0.24483102]
[1748753042783,0.24945477,104720.0,104710.0,0.24483132]
[1748753043103,0.23977754,104720.0,104710.0,0.2448313]
[1748753044175,0.23977754,104720.0,104710.0,0.21814569]
[1748753044371,0.23977754,104720.0,104710.0,0.24483133]
[1748753044597,0.23977754,104720.0,104710.0,0.24483148]
[1748753044931,0.23977754,104720.0,104710.0,0.23593627]
[1748753045133,0.23977754,104720.0,104710.0,0.21814569]
[1748753045435,0.23977754,104720.0,104710.0,0.22573129]
[1748753045648,0.23977754,104720.0,104710.0,0.23528174]
[1748753045853,0.23977754,104720.0,104710.0,0.23528178]
[1748753046057,0.23977754,104720.0,104710.0,0.23528187]
[1748753046458,0.23977754,104720.0,104710.0,0.24483196]
[1748753047197,0.23977754,104720.0,104710.0,0.2543845]
[1748753047402,0.23977754,104720.0,104710.0,0.2543887]
[1748753047962,0.23977754,104720.0,104710.0,0.25438763]
[1748753048401,0.23977754,104720.0,104710.0,0.26393754]
[1748753048594,0.23977754,104720.0,104710.0,0.21749291]
[1748753048827,0.23977754,104720.0,104710.0,0.24549036]
[1748753048966,0.23977754,104720.0,104710.0,0.25438769]
[1748753049162,0.23977754,104720.0,104710.0,0.25438772]
[1748753049547,0.23977754,104720.0,104710.0,0.22704306]
[1748753049799,0.23977754,104720.0,104710.0,0.25438784]
[1748753050207,0.23977754,104720.0,104710.0,0.24483784]
[1748753050421,0.23977754,104720.0,104710.0,0.25438784]
[1748753050925,0.23977754,104720.0,104710.0,0.25438789]
[1748753051083,0.23977754,104720.0,104710.0,0.23659309]
[1748753051291,0.23977754,104720.0,104710.0,0.26393781]
[1748753051978,0.23977754,104720.0,104710.0,0.25438763]
[1748753052622,0.22467754,104720.0,104710.0,0.24614273]
[1748753052793,0.22467754,104720.0,104710.0,0.2639358]
[1748753052994,0.22467754,104720.0,104710.0,0.25438522]
[1748753053197,0.20957754,104720.0,104710.0,0.24483522]
[1748753053405,0.20957754,104720.0,104710.0,0.24548876]
[1748753053614,0.20957754,104720.0,104710.0,0.25438483]
[1748753054023,0.20957754,104720.0,104710.0,0.23528475]
[1748753054332,0.20957754,104720.0,104710.0,0.24483484]
[1748753054539,0.20957754,104720.0,104710.0,0.24483353]
[1748753054723,0.20957754,104720.0,104710.0,0.23528344]
[1748753054921,0.20957754,104720.0,104710.0,0.24483353]
[1748753055313,0.20957754,104720.0,104710.0,0.25438353]
[1748753055519,0.20957754,104720.0,104710.0,0.24483353]
[1748753056184,0.20957754,104720.0,104710.0,0.24483166]
[1748753056490,0.20957754,104720.0,104710.0,0.23528148]
[1748753056641,0.20957754,104720.0,104710.0,0.24483158]
[1748753057289,0.20957754,104720.0,104710.0,0.23528147]
[1748753057702,0.20957754,104720.0,104710.0,0.24483156]
[1748753058723,0.20957754,104720.0,104710.0,0.23593628]
[1748753059022,0.20053466,104720.0,104710.0,0.22573129]
[1748753059359,0.20053466,104720.0,104710.0,0.23528154]
[1748753059595,0.20053466,104720.0,104710.0,0.22573136]
[1748753060235,0.20053466,104720.0,104710.0,0.23528154]
[1748753060437,0.20053466,104720.0,104710.0,0.22573136]
[1748753060650,0.19098548,104720.0,104710.0,0.51761192]
[1748753060857,0.19098548,104720.0,104710.0,0.22573192]
[1748753061492,0.19098548,104720.0,104710.0,0.19904542]
[1748753061695,0.19098548,104720.0,104710.0,0.22573178]
[1748753062108,0.19098548,104720.0,104710.0,0.22573177]
[1748753062546,0.19098548,104720.0,104710.0,0.22573176]
[1748753062946,0.19098548,104720.0,104710.0,0.22573174]
[1748753063386,0.19098548,104720.0,104710.0,0.034728]
[1748753064423,0.19098548,104720.0,104710.0,0.03472863]
[1748753064838,0.19098548,104720.0,104710.0,0.03472891]
[1748753065020,0.19098548,104720.0,104710.0,0.02583467]
[1748753065221,0.21965448,104720.0,104710.0,0.03473192]
[1748753065385,0.21965448,104720.0,104710.0,0.03473212]
[1748753066151,0.23465448,104720.0,104710.0,0.03273212]
[1748753066351,0.24995448,104720.0,104710.0,0.03272927]
[1748753066583,0.24995448,104720.0,104710.0,0.03272919]
[1748753066759,0.24995448,104720.0,104710.0,0.03072919]
[1748753066991,0.24995448,104720.0,104710.0,0.03272374]
[1748753067319,0.24995448,104720.0,104710.0,0.03271987]
[1748753067517,0.24995448,104720.0,104710.0,0.03071987]
[1748753068034,0.24995448,104720.0,104710.0,0.03072024]
[1748753068437,0.24995448,104720.0,104710.0,0.03071637]
[1748753069101,0.24995448,104720.0,104710.0,0.02182481]
[1748753069306,0.24995448,104720.0,104710.0,0.03071624]
[1748753069458,0.24995448,104720.0,104710.0,0.02182271]
[1748753069671,0.24995448,104720.0,104710.0,0.03071321]
[1748753070085,0.24995448,104720.0,104710.0,0.03071319]
[1748753070295,0.23465448,104720.0,104710.0,0.02182269]
[1748753070491,0.23465448,104720.0,104710.0,0.03071226]
[1748753070694,0.20598548,104720.0,104710.0,0.03071226]
[1748753070900,0.20598548,104720.0,104710.0,0.03071178]
[1748753071344,0.19098548,104720.0,104710.0,0.03070861]
[1748753071752,0.19098548,104720.0,104710.0,0.2217122]
[1748753072009,0.19098548,104720.0,104710.0,0.0040417]
[1748753072210,0.19098548,104720.0,104710.0,0.03070785]
[1748753073261,0.19098548,104720.0,104710.0,0.03070748]
[1748753073707,0.19098548,104720.0,104710.0,0.03070726]
[1748753074326,0.19098548,104720.0,104710.0,0.03070708]
[1748753074539,0.19098548,104720.0,104710.0,0.03070701]